bitfinex-derivatives/quotes_BNBF0:USTF0_20250221
["timestamp","ask_amount","ask_price","bid_price","bid_amount"]
[1740112788299,0.30603969,653.51,651.91,5.33613542]
[1740112788600,0.30603969,653.51,651.92,2.17294461]
[1740112788794,0.30603969,653.51,651.93,2.17294461]
[1740112788994,0.30603969,653.51,651.94,2.17294461]
[1740112789298,0.30603969,653.51,651.95,2.17294461]
[1740112789501,0.30603969,653.51,651.96,2.17294461]
[1740112789693,0.30603969,653.51,651.97,5.33613542]
[1740112789897,0.30603969,653.51,651.98,2.17294461]
[1740112790095,0.30603969,653.51,651.99,2.17294461]
[1740112790297,0.30603969,653.51,652.0,2.17294461]
[1740112790499,0.30603969,653.51,652.01,2.17294461]
[1740112790695,0.30603969,653.51,652.02,2.17294461]
[1740112790897,0.30603969,653.51,652.03,2.17294461]
[1740112791104,0.30603969,653.51,652.04,2.17294461]
[1740112791298,1.31,653.5,652.05,2.17294461]
[1740112791501,1.31,653.5,652.04,3.16319081]
[1740112791502,0.30605374,653.48,652.06,2.17294461]
[1740112791701,0.30605374,653.48,652.07,2.17294461]
[1740112791901,0.30605374,653.48,652.08,2.17190821]
[1740112792101,0.30605374,653.48,652.09,2.17190821]
[1740112792296,0.30605374,653.48,652.1,2.17190821]
[1740112792497,0.30605374,653.48,652.11,2.17190821]
[1740112792697,0.30605374,653.48,652.12,2.17190821]
[1740112792901,0.30605374,653.48,652.12,3.16319081]
[1740112794199,0.30605374,653.48,652.13,3.16319081]
[1740112795603,0.30605374,653.48,652.14,3.16319081]
[1740112796606,0.30605374,653.48,652.15,3.16319081]
[1740112797706,1.60117788,653.47,652.15,3.16319081]
[1740112797904,0.30606779,653.45,651.89,1.15061681]
[1740112798104,0.30606779,653.45,651.9,3.15861913]
[1740112799905,0.30606779,653.45,651.91,3.15861913]
[1740112801811,0.30606779,653.45,651.92,3.15861913]
[1740112803413,0.30606779,653.45,651.69,1.15061681]
[1740112803613,0.30606779,653.45,651.7,5.32802316]
[1740112803814,1.14772083,653.37,651.73,1.15061681]
[1740112804010,0.30611463,653.35,651.74,2.17002921]
[1740112804208,0.30611463,653.35,651.75,2.17002921]
[1740112804513,0.30611463,653.35,651.76,2.17002921]
[1740112804813,0.30611463,653.35,651.77,2.17002921]
[1740112805013,0.30611463,653.35,651.78,2.17002921]
[1740112805210,0.30611463,653.35,651.79,2.17002921]
[1740112805414,0.30611463,653.35,651.8,2.17002921]
[1740112805617,0.30611463,653.35,651.77,3.15799395]
[1740112805915,0.30611463,653.35,651.78,2.16991702]
[1740112806113,0.30611463,653.35,651.79,2.16991702]
[1740112806315,0.30611463,653.35,651.8,2.16991702]
[1740112806510,0.30611463,653.35,651.81,2.16991702]
[1740112806709,0.30611463,653.35,651.79,3.15799395]
[1740112806909,0.30611463,653.35,651.8,2.16995282]
[1740112807112,0.30611463,653.35,651.81,2.16995144]
[1740112807310,1.14772083,653.31,651.82,2.16995144]
[1740112807508,0.30614275,653.29,651.83,2.16995144]
[1740112807711,0.30614275,653.29,651.84,2.16995144]
[1740112807910,1.60155246,653.28,651.85,2.16995144]
[1740112808119,0.30615681,653.26,651.86,2.16995144]
[1740112808316,0.30615681,653.26,651.87,2.16995144]
[1740112808509,0.30615681,653.26,651.88,2.16995144]
[1740112808711,0.30615681,653.26,651.89,2.16995144]
[1740112808914,0.30615681,653.26,651.9,2.16995144]
[1740112809111,0.30615681,653.26,651.91,5.32794539]
[1740112809316,0.30615681,653.26,651.91,3.15799395]
[1740112809916,0.30615681,653.26,651.99,1.15061681]
[1740112810916,0.30615681,653.26,652.0,3.15799395]
[1740112812417,0.30615681,653.26,652.01,3.15799395]
[1740112814012,0.30615681,653.26,651.94,1.15061681]
[1740112814511,0.30615681,653.26,651.95,3.15979919]
[1740112815712,0.30615681,653.26,651.96,3.15979919]
[1740112816719,0.30615681,653.26,651.96,4.310416]
[1740112817116,0.30615681,653.26,651.97,3.15979919]
[1740112819015,0.30615681,653.26,651.98,3.15979919]
[1740112819320,0.30615681,653.26,651.99,2.17249891]
[1740112819523,0.30615681,653.26,652.03,1.15061681]
[1740112821524,1.152,653.25,652.03,1.15061681]
[1740112821722,0.30617087,653.23,652.03,1.15061681]
[1740112822419,0.30617087,653.23,651.91,1.15061681]
[1740112822820,0.30617087,653.23,651.92,3.16267748]
[1740112824222,0.30617087,653.23,651.93,3.16267748]
[1740112824424,0.30617087,653.23,651.94,2.17411477]
[1740112824625,0.30617087,653.23,651.95,2.17411477]
[1740112824825,0.30617087,653.23,651.93,3.16267748]
[1740112825021,0.30617087,653.23,651.94,2.17413263]
[1740112825221,0.30617087,653.23,651.95,2.17413263]
[1740112825424,0.30617087,653.23,651.93,3.16267748]
[1740112825724,0.30617087,653.23,651.94,2.174742]
[1740112825928,0.30617087,653.23,651.95,5.33741948]
[1740112826125,0.30617087,653.23,651.96,2.174742]
[1740112826325,0.30617087,653.23,651.95,3.16267748]
[1740112827223,0.30617087,653.23,651.96,2.17622134]
[1740112827424,0.30617087,653.23,651.95,3.16267748]
[1740112827628,0.30617087,653.23,651.96,2.17624508]
[1740112827828,0.30617087,653.23,651.97,2.17624449]
[1740112828024,0.30617087,653.23,651.96,3.16267748]
[1740112828822,0.30617087,653.23,651.97,2.17667578]
[1740112829021,0.30617087,653.23,651.96,3.16267748]
[1740112829325,0.30617087,653.23,651.97,5.33937585]
[1740112829522,0.30617087,653.23,651.98,2.17669837]
[1740112829823,0.30617087,653.23,651.99,2.17669837]
[1740112830027,0.30617087,653.23,652.0,2.17669837]
[1740112830228,0.30617087,653.23,652.04,1.15061681]
[1740112830422,0.30617087,653.23,652.05,2.17669837]
[1740112830627,0.30617087,653.23,652.06,2.17669837]
[1740112830828,0.30617087,653.23,652.07,2.17669837]
[1740112831026,0.30617087,653.23,652.08,2.17669837]
[1740112831226,0.30617087,653.23,652.09,2.17669837]
[1740112831425,0.30617087,653.23,652.1,2.17669837]
[1740112831624,0.30617087,653.23,652.11,2.17669837]
[1740112831824,0.30617087,653.23,652.12,2.17669837]
[1740112832129,0.30617087,653.23,652.07,3.16267748]
[1740112832332,0.30617087,653.23,652.08,2.17749129]
[1740112832531,0.30617087,653.23,652.09,2.17749129]
[1740112832731,0.30617087,653.23,652.1,2.17749129]
[1740112832931,0.30617087,653.23,652.16,1.15061681]
[1740112833134,0.30617087,653.23,652.17,2.17749129]
[1740112833430,0.30617087,653.23,652.16,1.15061681]
[1740112833631,0.30617087,653.23,652.17,2.17760167]
[1740112833833,0.30617087,653.23,652.16,1.15061681]
[1740112834130,0.30617087,653.23,652.17,2.17760167]
[1740112834331,0.30617087,653.23,652.17,3.16267748]
[1740112834534,0.30617087,653.23,652.18,2.1777733]
[1740112834830,0.30617087,653.23,652.17,3.16267748]
[1740112835232,0.30617087,653.23,652.18,2.17793361]
[1740112835432,0.30617087,653.23,652.19,3.16267748]
[1740112837829,0.30617087,653.23,652.2,3.16267748]
[1740112839436,0.30617087,653.23,651.97,1.15061681]
[1740112839633,0.30617087,653.23,651.98,2.17870165]
[1740112839930,0.30617087,653.23,651.99,5.34941957]
[1740112840137,0.30617087,653.23,652.0,2.17870165]
[1740112840338,0.30617087,653.23,652.01,2.17870165]
[1740112840538,0.30617087,653.23,651.99,3.17071792]
[1740112841441,0.30617087,653.23,651.97,1.15061681]
[1740112841838,0.30617087,653.23,651.98,3.17000722]
[1740112842444,0.30617087,653.23,652.0,1.15061681]
[1740112843548,0.30617087,653.23,652.01,3.17000722]
[1740112845351,0.30617087,653.23,652.0,1.15061681]
[1740112845749,0.30617087,653.23,651.93,1.15061681]
[1740112846152,0.30617087,653.23,651.94,3.1704889]
[1740112846753,0.30617087,653.23,651.95,2.17849802]
[1740112846954,0.30617087,653.23,651.94,3.1704889]
[1740112847153,0.30617087,653.23,651.95,2.17850022]
[1740112847452,0.30617087,653.23,651.94,3.1704889]
[1740112847954,0.30617087,653.23,651.95,3.1704889]
[1740112848854,0.30617087,653.23,652.02,1.15061681]
[1740112849955,0.30617087,653.23,652.03,3.1704889]
[1740112850556,0.30617087,653.23,652.04,2.17719835]
[1740112850752,0.30617087,653.23,652.05,2.17719835]
[1740112850949,0.30617087,653.23,652.06,2.17719835]
[1740112851155,0.30617087,653.23,652.07,5.34768725]
[1740112851454,0.30617087,653.23,652.08,2.17719835]
[1740112851652,0.30617087,653.23,652.09,2.17719835]
[1740112851954,0.30617087,653.23,652.1,2.17719835]
[1740112852155,0.30617087,653.23,652.11,2.17719835]
[1740112852356,0.30617087,653.23,652.12,2.17719835]
[1740112852651,0.30617087,653.23,652.13,2.17719835]
[1740112852856,0.30617087,653.23,652.07,3.1704889]
[1740112853057,0.30617087,653.23,652.08,2.17621311]
[1740112853252,0.30617087,653.23,652.09,2.17621311]
[1740112853451,0.30617087,653.23,652.1,2.17621311]
[1740112853654,0.30617087,653.23,652.11,2.17621311]
[1740112853853,0.30617087,653.23,652.08,3.1704889]
[1740112854054,0.30617087,653.23,652.09,2.17617385]
[1740112854256,0.30617087,653.23,652.1,5.34666275]
[1740112854455,0.30617087,653.23,652.1,3.1704889]
[1740112855158,0.30617087,653.23,652.11,3.1704889]
[1740112856957,0.30617087,653.23,652.03,1.15061681]
[1740112857157,0.30617087,653.23,651.68,1.14560293]
[1740112857158,0.30617087,653.23,651.95,1.15061681]
[1740112857358,0.30617087,653.23,651.96,2.17564236]
[1740112857659,0.30617087,653.23,652.04,3.16663616]
[1740112858659,0.30617087,653.23,652.05,3.16663616]
[1740112860059,0.30617087,653.23,652.06,3.16663616]
[1740112861464,0.30617087,653.23,652.04,1.15061681]
[1740112862264,0.30617087,653.23,652.05,3.16648328]
[1740112863761,0.30617087,653.23,652.06,3.16648328]
[1740112865261,0.30617087,653.23,652.07,5.34216816]
[1740112865462,0.30617087,653.23,652.08,2.17568488]
[1740112865661,0.30617087,653.23,652.09,2.17568488]
[1740112865963,0.30617087,653.23,652.1,2.17568488]
[1740112866162,0.30617087,653.23,652.11,2.17568488]
[1740112866362,0.30617087,653.23,652.12,2.17568488]
[1740112866562,0.30617087,653.23,652.13,2.17568488]
[1740112866863,0.30617087,653.23,652.13,3.16648328]
[1740112867063,1.042,653.22,652.14,2.1756226]
[1740112867260,0.30618024,653.21,652.13,3.16648328]
[1740112867457,0.30618024,653.21,652.14,2.17567643]
[1740112867661,1.60131295,653.2,652.15,2.17567643]
[1740112867862,0.30618962,653.19,652.16,5.34215971]
[1740112868061,0.30618962,653.19,652.17,2.17567643]
[1740112868369,0.30618962,653.19,652.18,2.17567643]
[1740112868666,0.30618962,653.19,652.19,2.17567643]
[1740112868866,0.30618962,653.19,652.2,2.17567643]
[1740112869066,0.30618962,653.19,652.21,5.34215971]
[1740112869262,0.30618962,653.19,652.22,2.17567643]
[1740112869461,0.30618962,653.19,652.23,2.17567643]
[1740112869658,0.30618962,653.19,652.21,3.16648328]
[1740112870267,0.30618962,653.19,652.22,4.31710009]
[1740112871869,0.30618962,653.19,652.23,3.16648328]
[1740112873067,0.30618962,653.19,652.24,3.16648328]
[1740112874474,0.30618962,653.19,652.25,3.16648328]
[1740112876172,0.30618962,653.19,652.26,3.16648328]
[1740112877274,0.30618962,653.19,652.27,3.16648328]
[1740112878672,0.30618962,653.19,652.13,1.15061681]
[1740112879175,0.30618962,653.19,652.14,3.16826946]
[1740112881075,0.30618962,653.19,652.15,3.16826946]
[1740112882474,0.30618962,653.19,652.16,3.16826946]
[1740112884177,0.30618962,653.19,652.17,2.17708417]
[1740112884478,0.30618962,653.19,652.14,1.15061681]
[1740112884479,0.30618962,653.19,652.21,1.15061681]
[1740112884680,0.30618962,653.19,652.22,2.17708417]
[1740112884879,0.30618962,653.19,652.23,2.17708417]
[1740112885079,0.30618962,653.19,652.24,2.17708417]
[1740112885275,0.30618962,653.19,652.25,2.17708417]
[1740112885473,0.30618962,653.19,652.21,1.15061681]
[1740112885474,0.30618962,653.19,652.26,3.16826946]
[1740112886581,0.30618962,653.19,652.27,3.16826946]
[1740112888283,0.30618962,653.19,652.22,1.15061681]
[1740112890186,0.30618962,653.19,652.16,1.15061681]
[1740112892089,0.30618962,653.19,652.18,1.15061681]
[1740112894892,0.30618962,653.19,652.19,2.17836512]
[1740112895095,0.30618962,653.19,652.2,5.34878628]
[1740112895393,0.30618962,653.19,652.21,2.17836512]
[1740112895593,0.30618962,653.19,652.22,2.17836512]
[1740112895892,0.30618962,653.19,652.23,2.17836512]
[1740112896093,0.30618962,653.19,652.24,2.17836512]
[1740112896293,0.30618962,653.19,652.25,2.17836512]
[1740112896495,0.30618962,653.19,652.26,2.17836512]
[1740112896693,0.30618962,653.19,652.27,2.17836512]
[1740112896891,0.30618962,653.19,652.28,2.17836512]
[1740112897087,0.30618962,653.19,652.29,5.34878628]
[1740112897292,0.30618962,653.19,652.3,2.17836512]
[1740112897491,0.30618962,653.19,652.31,2.17836512]
[1740112897689,1.45391045,653.19,652.32,2.17836512]
[1740112897890,1.45391045,653.19,652.33,2.17836512]
[1740112898095,1.45391045,653.19,652.34,2.17836512]
[1740112898289,1.45391045,653.19,652.35,2.17836512]
[1740112898487,1.45391045,653.19,652.36,2.17836512]
[1740112898690,1.45391045,653.19,652.37,2.17836512]
[1740112898891,1.45391045,653.19,652.38,5.34878628]
[1740112899093,1.45391045,653.19,652.38,3.17042116]
[1740112899489,1.45391045,653.19,652.39,2.18017557]
[1740112899690,1.45391045,653.19,652.38,3.17042116]
[1740112899691,1.45391045,653.19,652.4,2.18017557]
[1740112899887,1.45391045,653.19,652.41,2.18017557]
[1740112900087,1.45391045,653.19,652.42,2.18017557]
[1740112900290,1.45391045,653.19,652.43,2.18017557]
[1740112900595,1.45391045,653.19,652.44,5.35059673]
[1740112900895,1.45391045,653.19,652.45,2.18017557]
[1740112901088,1.14772083,653.17,652.46,2.18017557]
[1740112901292,0.30620368,653.16,652.47,2.18017557]
[1740112901493,0.30620368,653.16,652.48,2.18017557]
[1740112901693,0.30620368,653.16,652.44,3.17042116]
[1740112901889,0.30620368,653.16,652.45,2.18027483]
[1740112902090,0.30620368,653.16,652.49,3.17042116]
[1740112903096,0.30620368,653.16,652.5,3.17042116]
[1740112904696,0.30620368,653.16,652.24,1.15061681]
[1740112905193,0.30620368,653.16,652.25,3.17338849]
[1740112906699,0.30620368,653.16,652.26,3.17338849]
[1740112907997,0.30620368,653.16,652.21,1.15061681]
[1740112908497,0.30620368,653.16,652.22,3.17355145]
[1740112909499,0.30620368,653.16,652.22,4.32416826]
[1740112910097,0.30620368,653.16,652.23,3.17355145]
[1740112912200,0.30620368,653.16,652.24,3.17355145]
[1740112913596,0.30620368,653.16,652.25,3.17355145]
[1740112914296,0.30620368,653.16,652.26,2.1810475]
[1740112914501,0.30620368,653.16,652.27,2.1810475]
[1740112914698,0.30620368,653.16,652.28,5.35459895]
[1740112914897,0.30620368,653.16,652.29,2.1810475]
[1740112915104,0.30620368,653.16,652.3,2.1810475]
[1740112915296,0.30620368,653.16,652.31,2.1810475]
[1740112915501,0.30620368,653.16,652.32,2.1810475]
[1740112915699,0.30620368,653.16,652.33,2.1810475]
[1740112915905,0.30620368,653.16,652.34,2.1810475]
[1740112916104,0.30620368,653.16,652.35,2.1810475]
[1740112916301,0.30620368,653.16,652.36,2.1810475]
[1740112916500,0.30620368,653.16,652.37,2.1810475]
[1740112916705,0.30620368,653.16,652.38,2.1810475]
[1740112917004,0.30620368,653.16,652.36,3.17355145]
[1740112917205,0.30620368,653.16,652.37,2.18125122]
[1740112917399,0.30620368,653.16,652.38,2.18125122]
[1740112917599,0.30620368,653.16,652.39,3.17355145]
[1740112918200,0.30620368,653.16,652.4,2.18125535]
[1740112918507,0.30620368,653.16,652.39,3.17355145]
[1740112918702,0.30620368,653.16,652.4,2.18133396]
[1740112918903,0.30620368,653.16,652.41,2.18133396]
[1740112919206,0.30620368,653.16,652.41,3.17355145]
[1740112919807,0.30620368,653.16,652.42,3.17355145]
[1740112920108,0.30620368,653.16,652.43,2.18142902]
[1740112920309,0.30620368,653.16,652.44,2.18142902]
[1740112920510,0.30620368,653.16,652.45,2.18142902]
[1740112920704,0.30620368,653.16,652.46,2.18142902]
[1740112920909,0.30620368,653.16,652.47,3.17355145]
[1740112922211,0.30620368,653.16,652.3,1.15061681]
[1740112924213,0.30620368,653.16,652.2,1.15061681]
[1740112927217,0.30620368,653.16,652.01,1.15061681]
[1740112927818,0.30620368,653.16,652.02,3.17245391]
[1740112929513,0.30620368,653.16,652.02,4.32307072]
[1740112929717,0.30620368,653.16,652.02,1.15061681]
[1740112932119,0.30620368,653.16,651.99,1.15061681]
[1740112932322,0.30620368,653.16,652.0,3.17123928]
[1740112933124,0.30620368,653.16,652.01,2.1788383]
[1740112933322,0.30620368,653.16,652.02,2.1788383]
[1740112933518,0.30620368,653.16,652.03,2.1788383]
[1740112933720,0.30620368,653.16,652.04,2.1788383]
[1740112933920,0.30620368,653.16,652.05,2.1788383]
[1740112934119,0.30620368,653.16,652.06,2.1788383]
[1740112934321,0.30620368,653.16,652.07,2.1788383]
[1740112934519,0.30620368,653.16,652.08,2.1788383]
[1740112934818,0.30620368,653.16,652.09,2.1788383]
[1740112935022,0.30620368,653.16,652.07,3.17123928]
[1740112935221,0.30620368,653.16,652.24,1.15061681]
[1740112937626,0.30620368,653.16,652.25,3.17021155]
[1740112939127,0.30620368,653.16,652.26,5.34834742]
[1740112939322,0.30620368,653.16,652.26,3.17021155]
[1740112940124,0.30620368,653.16,652.27,2.17770975]
[1740112940330,0.30620368,653.16,652.26,3.17021155]
[1740112940531,0.30620368,653.16,652.27,3.17021155]
[1740112941436,0.30620368,653.16,652.27,4.32082836]
[1740112942029,0.30620368,653.16,652.28,3.17021155]
[1740112943728,0.30620368,653.16,652.29,5.3470445]
[1740112943935,0.30620368,653.16,652.3,2.17683295]
[1740112944134,0.30620368,653.16,652.31,2.17683295]
[1740112944335,0.30620368,653.16,652.32,2.17683295]
[1740112944636,0.30620368,653.16,652.29,3.17021155]
[1740112944637,0.30620368,653.16,652.33,2.17683295]
[1740112944834,0.30620368,653.16,652.34,2.17683295]
[1740112945134,0.30620368,653.16,652.29,3.17021155]
[1740112945537,0.30620368,653.16,652.3,3.17021155]
[1740112946936,0.30620368,653.16,652.31,3.17021155]
[1740112948337,0.30620368,653.16,652.2,1.15061681]
[1740112949038,1.049,653.15,652.2,1.15061681]
[1740112950239,1.049,653.15,652.21,3.16540674]
[1740112951836,1.049,653.15,652.22,3.16540674]
[1740112953541,1.049,653.15,652.23,3.16540674]
[1740112954841,1.049,653.15,652.24,3.16540674]
[1740112956641,1.049,653.15,652.25,3.16540674]
[1740112957044,1.049,653.15,652.26,2.17386168]
[1740112957242,1.049,653.15,652.27,2.17386168]
[1740112957437,1.049,653.15,652.28,2.17386168]
[1740112957642,1.049,653.15,652.29,2.17386168]
[1740112957841,1.049,653.15,652.3,2.17386168]
[1740112958042,1.049,653.15,652.31,2.17386168]
[1740112958238,1.049,653.15,652.32,2.17386168]
[1740112958439,1.049,653.15,652.33,2.17386168]
[1740112958641,1.049,653.15,652.34,2.17386168]
[1740112958948,1.049,653.15,652.35,2.17386168]
[1740112959143,1.049,653.15,652.3,3.16540674]
[1740112959337,1.049,653.15,652.23,1.15061681]
[1740112962245,1.049,653.15,652.17,1.15061681]
[1740112964844,1.049,653.15,652.09,1.15061681]
[1740112965140,1.049,653.15,652.1,3.16369792]
[1740112967046,1.049,653.15,652.11,3.16369792]
[1740112968239,1.049,653.15,652.11,4.31431473]
[1740112968645,1.049,653.15,652.11,1.15061681]
[1740112968946,1.049,653.15,652.12,2.17365747]
[1740112969144,1.049,653.15,652.13,2.17365747]
[1740112969346,1.049,653.15,652.14,2.17365747]
[1740112969644,1.049,653.15,652.15,2.17365747]
[1740112969846,1.049,653.15,652.16,2.17365747]
[1740112970039,1.049,653.15,652.13,3.16392918]
[1740112970242,1.049,653.15,652.14,2.1737517]
[1740112970443,1.049,653.15,652.28,1.15061681]
[1740112970947,1.049,653.15,652.29,3.16392918]
[1740112972547,1.049,653.15,652.3,3.16392918]
[1740112973147,0.30620368,653.16,652.3,3.16392918]
[1740112973348,0.30620368,653.16,652.35,1.15061681]
[1740112975152,0.30620368,653.16,652.36,3.1647834]
[1740112976454,0.30620368,653.16,652.36,4.31540021]
[1740112976649,0.30620368,653.16,652.37,3.1647834]
[1740112978355,0.30620368,653.16,652.36,1.15061681]
[1740112978954,0.30620368,653.16,652.39,1.15061681]
[1740112981956,0.30620368,653.16,652.31,1.15061681]
[1740112985458,0.30620368,653.16,651.92,1.14560293]
[1740112985459,0.30620368,653.16,652.15,1.15061681]
[1740112988359,0.30620368,653.16,651.36,1.37472352]
[1740112988360,0.30620368,653.16,652.1,1.15061681]
[1740112988859,1.019,653.15,652.1,1.15061681]
[1740112991256,1.019,653.15,651.31,1.37472352]
[1740112991257,1.019,653.15,652.12,1.15061681]
[1740112991861,1.019,653.15,652.13,2.17721663]
[1740112992062,1.019,653.15,652.14,2.17721663]
[1740112992359,1.019,653.15,652.15,2.17721663]
[1740112992556,1.019,653.15,652.16,2.17721663]
[1740112992760,1.019,653.15,652.17,2.17721663]
[1740112992959,1.019,653.15,652.18,2.17721663]
[1740112993157,1.019,653.15,652.19,5.34625394]
[1740112993356,1.019,653.15,652.2,2.17721663]
[1740112993554,1.019,653.15,652.21,2.17721663]
[1740112993754,1.019,653.15,652.22,2.17721663]
[1740112994055,1.019,653.15,652.23,2.17721663]
[1740112994259,1.019,653.15,652.24,2.17721663]
[1740112994454,1.019,653.15,652.25,2.17721663]
[1740112994655,1.019,653.15,652.27,1.15061681]
[1740112994859,1.019,653.15,652.28,2.17721663]
[1740112995064,1.019,653.15,652.27,1.15061681]
[1740112996062,1.019,653.15,652.28,3.16903731]
[1740112997166,1.32520837,653.15,652.28,3.16903731]
[1740112997965,1.32520837,653.15,652.27,1.15061681]
[1740112998162,1.32520837,653.15,652.02,1.14618105]
[1740112998163,1.32520837,653.15,652.3,1.15061681]
[1740113002766,1.32520837,653.15,652.24,1.15061681]
[1740113003364,1.32520837,653.15,652.25,3.17163785]
[1740113005073,1.32520837,653.15,652.26,3.17163785]
[1740113006174,1.32520837,653.15,652.27,2.17883184]
[1740113006369,1.32520837,653.15,652.28,2.17883184]
[1740113006573,1.32520837,653.15,652.29,2.17883184]
[1740113006773,1.32520837,653.15,652.3,2.17883184]
[1740113006970,1.32520837,653.15,652.31,2.17883184]
[1740113007167,1.32520837,653.15,652.28,3.17163785]
[1740113007371,1.32520837,653.15,652.29,2.17878994]
[1740113007573,1.32520837,653.15,652.3,2.17878994]
[1740113007770,1.32520837,653.15,652.31,2.17878994]
[1740113007972,1.32520837,653.15,652.28,3.17163785]
[1740113008174,1.32520837,653.15,652.31,3.17163785]
[1740113008371,1.32520837,653.15,652.32,2.17877976]
[1740113008675,1.32520837,653.15,652.33,2.17877976]
[1740113008875,1.32520837,653.15,652.34,2.17877976]
[1740113009076,1.32520837,653.15,652.35,2.17877976]
[1740113009275,1.32520837,653.15,652.36,2.17877976]
[1740113009476,1.32520837,653.15,652.37,2.17877976]
[1740113009676,1.32520837,653.15,652.38,2.17877976]
[1740113009876,1.32520837,653.15,652.39,2.17877976]
[1740113010079,1.32520837,653.15,652.4,2.17877976]
[1740113010271,1.32520837,653.15,652.41,5.35041761]
[1740113010477,1.32520837,653.15,652.42,2.17877976]
[1740113010671,1.32520837,653.15,652.41,3.17163785]
[1740113010672,1.32520837,653.15,652.43,2.17877976]
[1740113010877,1.32520837,653.15,652.44,2.17877976]
[1740113011079,1.32520837,653.15,652.45,2.17877976]
[1740113011273,1.32520837,653.15,652.46,2.17877976]
[1740113011478,1.32520837,653.15,652.47,2.17877976]
[1740113011675,1.32520837,653.15,652.48,2.17877976]
[1740113011974,1.32520837,653.15,652.49,2.17877976]
[1740113012180,1.32520837,653.15,652.5,2.17877976]
[1740113012373,1.32520837,653.15,652.48,3.17163785]
[1740113012374,1.32520837,653.15,652.51,2.17877976]
[1740113012577,1.32520837,653.15,652.52,2.17877976]
[1740113012777,1.32520837,653.15,652.53,2.17877976]
[1740113012977,1.32520837,653.15,652.54,2.17877976]
[1740113013172,1.32520837,653.15,652.55,2.17877976]
[1740113013372,1.32520837,653.15,652.56,2.17877976]
[1740113013575,1.32520837,653.15,652.57,2.17877976]
[1740113013774,1.32520837,653.15,652.58,2.17877976]
[1740113013977,1.32520837,653.15,652.59,2.17877976]
[1740113014175,1.32520837,653.15,652.6,2.17877976]
[1740113014373,1.32520837,653.15,652.53,3.17163785]
[1740113014578,1.32520837,653.15,652.48,1.15061681]
[1740113014579,1.32520837,653.15,652.54,3.17163785]
[1740113016380,1.32520837,653.15,652.55,3.17163785]
[1740113017680,1.32520837,653.15,652.56,3.17163785]
[1740113018780,0.30620837,653.15,652.56,3.17163785]
[1740113019382,0.30620837,653.15,652.41,1.15061681]
[1740113019682,0.30620837,653.15,652.31,1.15061681]
[1740113019882,0.30620837,653.15,652.42,3.17103786]
[1740113021078,0.30620837,653.15,652.43,3.17103786]
[1740113022586,0.30620837,653.15,652.44,3.17103786]
[1740113023987,0.30620837,653.15,652.31,1.15061681]
[1740113024287,0.30620837,653.15,652.32,2.17822682]
[1740113024487,0.30620837,653.15,652.33,5.34878501]
[1740113024687,0.30620837,653.15,652.34,2.17822682]
[1740113024889,0.30620837,653.15,652.35,2.17822682]
[1740113025083,0.30620837,653.15,652.36,2.17822682]
[1740113025284,0.30620837,653.15,652.37,2.17822682]
[1740113025587,0.30620837,653.15,652.38,2.17822682]
[1740113025783,0.30620837,653.15,652.39,5.34878501]
[1740113025982,0.30620837,653.15,652.39,3.17055819]
[1740113026988,0.30620837,653.15,652.4,3.17055819]
[1740113027490,0.30620837,653.15,652.41,2.17800743]
[1740113027691,0.30620837,653.15,652.42,2.17800743]
[1740113027990,0.30620837,653.15,652.43,2.17800743]
[1740113028186,0.30620837,653.15,652.44,5.34856562]
[1740113028392,0.30620837,653.15,652.45,2.17800743]
[1740113028592,0.30620837,653.15,652.46,2.17800743]
[1740113028786,0.30620837,653.15,652.47,2.17800743]
[1740113028985,0.30620837,653.15,652.48,2.17800743]
[1740113029190,0.30620837,653.15,652.49,2.17800743]
[1740113029387,0.30620837,653.15,652.44,3.17055819]
[1740113029593,0.30620837,653.15,652.45,2.17739602]
[1740113029787,0.30620837,653.15,652.46,5.34795421]
[1740113029989,0.30620837,653.15,652.47,2.17739602]
[1740113030190,0.30620837,653.15,652.48,2.17739602]
[1740113030493,0.30620837,653.15,652.49,2.17739602]
[1740113030693,0.30620837,653.15,652.5,2.17739602]
[1740113030892,0.30620837,653.15,652.46,3.17055819]
[1740113031091,0.30620837,653.15,652.47,2.17718423]
[1740113031284,0.30620837,653.15,652.48,2.17718423]
[1740113031490,0.30620837,653.15,652.49,2.17718423]
[1740113031695,0.30620837,653.15,652.5,2.17718423]
[1740113031886,0.30620837,653.15,652.48,3.17055819]
[1740113032086,0.30620837,653.15,652.49,5.3476876]
[1740113032392,0.30620837,653.15,652.49,3.17055819]
[1740113032889,0.30620837,653.15,652.5,2.17696148]
[1740113033093,0.30620837,653.15,652.51,2.17696148]
[1740113033292,0.30620837,653.15,652.52,2.17696148]
[1740113033587,0.30620837,653.15,652.53,5.34751967]
[1740113033792,0.30620837,653.15,652.54,2.17696148]
[1740113034092,0.30620837,653.15,652.55,2.17696148]
[1740113034395,0.30620837,653.15,652.56,2.17696148]
[1740113034590,0.30620837,653.15,652.53,3.17055819]
[1740113034591,0.30620837,653.15,652.57,2.17696148]
[1740113034788,0.30620837,653.15,652.53,3.17055819]
[1740113034987,0.30620837,653.15,652.54,2.1767503]